[Event "Titled Tuesday Blitz May 2 Early 2023"]
[White "Arpita, Mukherjee"]
[Black "Mendez Fortes, Eduardo Jesus"]
[WhiteFideId "5056403"]
[BlackFideId "3502376"]
[WhiteElo "2129"]
[BlackElo "2307"]
[Result "0-1"]
[Round "09"]
[TimeControl "180+2"]
[Date "2023.05.02"]
[WhiteClock "0:00:02"]
[BlackClock "0:00:12"]

1. e4 {[%clk 0:02:54]}  c5 {[%clk 0:02:59]} 2. Nf3 {[%clk 0:02:53]}  d6 {[%clk 0:03:00]} 3. Bb5+ {[%clk 0:02:53]}  Nd7 {[%clk 0:02:59]} 4. d4 {[%clk 0:02:51]}  cxd4 {[%clk 0:02:59]} 5. Qxd4 {[%clk 0:02:51]}  a6 {[%clk 0:02:58]} 6. Bxd7+ {[%clk 0:02:51]}  Bxd7 {[%clk 0:02:59]} 7. c4 {[%clk 0:02:51]}  Rc8 {[%clk 0:02:55]} 8. Nc3 {[%clk 0:02:49]}  e5 {[%clk 0:02:53]} 9. Qd3 {[%clk 0:02:48]}  Be6 {[%clk 0:02:53]} 10. b3 {[%clk 0:02:48]}  Ne7 {[%clk 0:02:45]} 11. O-O {[%clk 0:02:47]}  Nc6 {[%clk 0:02:45]} 12. a4 {[%clk 0:02:29]}  Be7 {[%clk 0:02:43]} 13. Ba3 {[%clk 0:02:29]}  O-O {[%clk 0:02:29]} 14. Rfd1 {[%clk 0:02:28]}  Qb6 {[%clk 0:02:28]} 15. Rab1 {[%clk 0:02:22]}  Rfd8 {[%clk 0:02:26]} 16. b4 {[%clk 0:02:01]}  Nd4 {[%clk 0:02:19]} 17. Nxd4 {[%clk 0:01:30]}  Bxc4 {[%clk 0:02:17]} 18. Nd5 {[%clk 0:00:56]}  Bxd3 {[%clk 0:02:07]} 19. Nxb6 {[%clk 0:00:56]}  Rc3 {[%clk 0:01:46]} 20. Bb2 {[%clk 0:00:19]}  Bxb1 {[%clk 0:01:43]} 21. Bxc3 {[%clk 0:00:15]}  exd4 {[%clk 0:01:42]} 22. Bxd4 {[%clk 0:00:16]}  Ba2 {[%clk 0:01:34]} 23. Rc1 {[%clk 0:00:14]}  d5 {[%clk 0:01:34]} 24. e5 {[%clk 0:00:12]}  Bxb4 {[%clk 0:01:28]} 25. f4 {[%clk 0:00:10]}  a5 {[%clk 0:01:28]} 26. Rc7 {[%clk 0:00:08]}  Bb1 {[%clk 0:01:16]} 27. Rxb7 {[%clk 0:00:08]}  Be4 {[%clk 0:01:16]} 28. Kf2 {[%clk 0:00:09]}  Bd2 {[%clk 0:01:08]} 29. g3 {[%clk 0:00:09]}  Re8 {[%clk 0:00:55]} 30. Rc7 {[%clk 0:00:09]}  g5 {[%clk 0:00:42]} 31. fxg5 {[%clk 0:00:04]}  Bxg5 {[%clk 0:00:40]} 32. Nc8 {[%clk 0:00:05]}  Rf8 {[%clk 0:00:35]} 33. Nd6 {[%clk 0:00:05]}  Bg6 {[%clk 0:00:31]} 34. Ke2 {[%clk 0:00:04]}  Rb8 {[%clk 0:00:29]} 35. Rb7 {[%clk 0:00:03]}  Rd8 {[%clk 0:00:23]} 36. h4 {[%clk 0:00:04]}  Bh5+ {[%clk 0:00:20]} 37. Ke1 {[%clk 0:00:04]}  Bh6 {[%clk 0:00:20]} 38. Nf5 {[%clk 0:00:04]}  Bf8 {[%clk 0:00:20]} 39. Ne7+ {[%clk 0:00:04]}  Bxe7 {[%clk 0:00:20]} 40. Rxe7 {[%clk 0:00:05]}  Rc8 {[%clk 0:00:16]} 41. Kd2 {[%clk 0:00:05]}  Bg6 {[%clk 0:00:16]} 42. Ke3 {[%clk 0:00:05]}  h5 {[%clk 0:00:14]} 43. Kf4 {[%clk 0:00:05]}  Rc4 {[%clk 0:00:14]} 44. Ke3 {[%clk 0:00:06]}  Rxa4 {[%clk 0:00:13]} 45. Re8+ {[%clk 0:00:06]}  Kh7 {[%clk 0:00:13]} 46. e6 {[%clk 0:00:05]}  f6 {[%clk 0:00:13]} 47. Bxf6 {[%clk 0:00:05]}  Bxe8 {[%clk 0:00:12]} 48. Bd4 {[%clk 0:00:02]}  Kg6 {[%clk 0:00:12]} 0-1


[Site "https://www.chess.com"]

[Event "Titled Tuesday Blitz May 2 Early 2023"]
[White "Girya, Olga"]
[Black "Pham, Khoi"]
[WhiteFideId "4195752"]
[BlackFideId "1054988"]
[WhiteElo "2263"]
[BlackElo "2355"]
[Result "1-0"]
[Round "09"]
[TimeControl "180+2"]
[Date "2023.05.02"]
[WhiteClock "0:00:04"]
[BlackClock "0:00:03"]

1. d4 {[%clk 0:03:00]}  f5 {[%clk 0:02:59]} 2. g3 {[%clk 0:02:59]}  Nf6 {[%clk 0:02:59]} 3. Bg2 {[%clk 0:02:59]}  g6 {[%clk 0:03:00]} 4. Nd2 {[%clk 0:02:59]}  Bg7 {[%clk 0:03:00]} 5. c3 {[%clk 0:02:59]}  O-O {[%clk 0:03:00]} 6. e4 {[%clk 0:03:00]}  fxe4 {[%clk 0:02:57]} 7. Nxe4 {[%clk 0:03:01]}  Nxe4 {[%clk 0:02:57]} 8. Bxe4 {[%clk 0:03:01]}  e6 {[%clk 0:02:56]} 9. Bg2 {[%clk 0:02:47]}  d6 {[%clk 0:02:51]} 10. Nf3 {[%clk 0:02:47]}  Nd7 {[%clk 0:02:49]} 11. O-O {[%clk 0:02:47]}  Kh8 {[%clk 0:02:49]} 12. Ng5 {[%clk 0:02:40]}  Nf6 {[%clk 0:02:47]} 13. Re1 {[%clk 0:02:37]}  Qe7 {[%clk 0:02:26]} 14. Qb3 {[%clk 0:02:35]}  e5 {[%clk 0:02:23]} 15. dxe5 {[%clk 0:02:34]}  dxe5 {[%clk 0:02:23]} 16. Be3 {[%clk 0:02:02]}  h6 {[%clk 0:02:19]} 17. Ne4 {[%clk 0:02:00]}  Nxe4 {[%clk 0:02:12]} 18. Bxe4 {[%clk 0:02:01]}  Bf5 {[%clk 0:02:05]} 19. Qxb7 {[%clk 0:01:37]}  Rab8 {[%clk 0:02:00]} 20. Qc6 {[%clk 0:01:32]}  Rf6 {[%clk 0:01:57]} 21. Qc4 {[%clk 0:01:28]}  Rxb2 {[%clk 0:01:41]} 22. Bxa7 {[%clk 0:01:27]}  Bxe4 {[%clk 0:01:22]} 23. Qxe4 {[%clk 0:01:25]}  Qa3 {[%clk 0:01:22]} 24. Be3 {[%clk 0:01:12]}  Qxc3 {[%clk 0:01:20]} 25. Rec1 {[%clk 0:00:56]}  Qa5 {[%clk 0:00:58]} 26. Rc5 {[%clk 0:00:56]}  Qa3 {[%clk 0:00:51]} 27. Rxc7 {[%clk 0:00:54]}  Rxa2 {[%clk 0:00:51]} 28. Rxa2 {[%clk 0:00:29]}  Qxa2 {[%clk 0:00:52]} 29. Kg2 {[%clk 0:00:11]}  Rf7 {[%clk 0:00:46]} 30. Rc8+ {[%clk 0:00:09]}  Kh7 {[%clk 0:00:46]} 31. Rc6 {[%clk 0:00:10]}  Rf6 {[%clk 0:00:43]} 32. Rc7 {[%clk 0:00:10]}  Rf7 {[%clk 0:00:41]} 33. Rc6 {[%clk 0:00:10]}  Rf6 {[%clk 0:00:42]} 34. Rxf6 {[%clk 0:00:09]}  Bxf6 {[%clk 0:00:43]} 35. h4 {[%clk 0:00:09]}  Kg7 {[%clk 0:00:37]} 36. Qb7+ {[%clk 0:00:09]}  Qf7 {[%clk 0:00:37]} 37. Bxh6+ {[%clk 0:00:09]}  Kg8 {[%clk 0:00:33]} 38. Qxf7+ {[%clk 0:00:09]}  Kxf7 {[%clk 0:00:34]} 39. Kf3 {[%clk 0:00:09]}  Ke6 {[%clk 0:00:32]} 40. Ke4 {[%clk 0:00:09]}  Bd8 {[%clk 0:00:30]} 41. Bd2 {[%clk 0:00:08]}  Bb6 {[%clk 0:00:29]} 42. Be3 {[%clk 0:00:05]}  Ba5 {[%clk 0:00:29]} 43. g4 {[%clk 0:00:05]}  Bd8 {[%clk 0:00:24]} 44. Bg5 {[%clk 0:00:03]}  Bb6 {[%clk 0:00:18]} 45. Be3 {[%clk 0:00:03]}  Bd8 {[%clk 0:00:18]} 46. h5 {[%clk 0:00:04]}  gxh5 {[%clk 0:00:18]} 47. gxh5 {[%clk 0:00:04]}  Bf6 {[%clk 0:00:18]} 48. f3 {[%clk 0:00:04]}  Bh8 {[%clk 0:00:18]} 49. Bd2 {[%clk 0:00:04]}  Bf6 {[%clk 0:00:17]} 50. Bc3 {[%clk 0:00:05]}  Bh8 {[%clk 0:00:18]} 51. f4 {[%clk 0:00:04]}  Bg7 {[%clk 0:00:09]} 52. Bxe5 {[%clk 0:00:04]}  Bh6 {[%clk 0:00:09]} 53. f5+ {[%clk 0:00:04]}  Kf7 {[%clk 0:00:10]} 54. Bf4 {[%clk 0:00:05]}  Bf8 {[%clk 0:00:09]} 55. h6 {[%clk 0:00:04]}  Kg8 {[%clk 0:00:09]} 56. Bg5 {[%clk 0:00:04]}  Ba3 {[%clk 0:00:06]} 57. Ke5 {[%clk 0:00:04]}  Bb2+ {[%clk 0:00:06]} 58. Ke6 {[%clk 0:00:04]}  Bc3 {[%clk 0:00:06]} 59. f6 {[%clk 0:00:04]}  Bb4 {[%clk 0:00:05]} 60. f7+ {[%clk 0:00:04]}  Kh7 {[%clk 0:00:05]} 61. Be7 {[%clk 0:00:04]}  Bxe7 {[%clk 0:00:02]} 62. Kxe7 {[%clk 0:00:04]}  Kxh6 {[%clk 0:00:03]} 63. f8=Q+ {[%clk 0:00:04]} 1-0


[Site "https://www.chess.com"]

[Event "Titled Tuesday Blitz May 2 Early 2023"]
[White "Pourkashiyan, Atousa"]
[Black "Gontcharov, Vladislav"]
[WhiteFideId "12502014"]
[BlackFideId "4123492"]
[WhiteElo "2228"]
[BlackElo "2420"]
[Result "0-1"]
[Round "09"]
[TimeControl "180+2"]
[Date "2023.05.02"]
[WhiteClock "0:00:08"]
[BlackClock "0:00:23"]

1. e4 {[%clk 0:02:47]}  e6 {[%clk 0:02:59]} 2. d4 {[%clk 0:02:47]}  d5 {[%clk 0:02:59]} 3. Nd2 {[%clk 0:02:48]}  Be7 {[%clk 0:02:55]} 4. Ngf3 {[%clk 0:02:46]}  Nf6 {[%clk 0:02:54]} 5. Bd3 {[%clk 0:02:46]}  c5 {[%clk 0:02:53]} 6. e5 {[%clk 0:02:36]}  Nfd7 {[%clk 0:02:52]} 7. c3 {[%clk 0:02:37]}  Nc6 {[%clk 0:02:52]} 8. O-O {[%clk 0:02:36]}  g5 {[%clk 0:02:52]} 9. dxc5 {[%clk 0:02:32]}  g4 {[%clk 0:02:47]} 10. Nd4 {[%clk 0:02:30]}  Ncxe5 {[%clk 0:02:45]} 11. Bb5 {[%clk 0:02:29]}  Bxc5 {[%clk 0:02:41]} 12. Re1 {[%clk 0:02:27]}  Ng6 {[%clk 0:02:37]} 13. Qxg4 {[%clk 0:02:24]}  O-O {[%clk 0:02:34]} 14. N2f3 {[%clk 0:01:55]}  Nf6 {[%clk 0:02:32]} 15. Qg5 {[%clk 0:01:56]}  Ne4 {[%clk 0:02:30]} 16. Qh6 {[%clk 0:01:50]}  Qf6 {[%clk 0:02:23]} 17. h4 {[%clk 0:01:28]}  Qg7 {[%clk 0:01:54]} 18. h5 {[%clk 0:01:28]}  Ne7 {[%clk 0:01:50]} 19. Qxg7+ {[%clk 0:01:15]}  Kxg7 {[%clk 0:01:50]} 20. Bd3 {[%clk 0:01:16]}  f5 {[%clk 0:01:26]} 21. h6+ {[%clk 0:01:15]}  Kf6 {[%clk 0:01:17]} 22. Bf4 {[%clk 0:01:11]}  Ng6 {[%clk 0:01:09]} 23. Be3 {[%clk 0:00:46]}  f4 {[%clk 0:00:56]} 24. Bc1 {[%clk 0:00:39]}  e5 {[%clk 0:00:56]} 25. Nb3 {[%clk 0:00:36]}  Bxf2+ {[%clk 0:00:56]} 26. Kf1 {[%clk 0:00:36]}  Bxe1 {[%clk 0:00:55]} 27. Kxe1 {[%clk 0:00:36]}  Ng3 {[%clk 0:00:45]} 28. Bxg6 {[%clk 0:00:33]}  hxg6 {[%clk 0:00:44]} 29. c4 {[%clk 0:00:17]}  dxc4 {[%clk 0:00:44]} 30. Nc5 {[%clk 0:00:15]}  b6 {[%clk 0:00:43]} 31. Na4 {[%clk 0:00:14]}  Bf5 {[%clk 0:00:41]} 32. Bd2 {[%clk 0:00:14]}  Rh8 {[%clk 0:00:39]} 33. Bc3 {[%clk 0:00:14]}  Rae8 {[%clk 0:00:38]} 34. Kf2 {[%clk 0:00:14]}  Ne4+ {[%clk 0:00:38]} 35. Kg1 {[%clk 0:00:13]}  Rxh6 {[%clk 0:00:38]} 36. Re1 {[%clk 0:00:13]}  Rh7 {[%clk 0:00:34]} 37. Bb4 {[%clk 0:00:12]}  Rd7 {[%clk 0:00:34]} 38. Nc3 {[%clk 0:00:12]}  Ng3 {[%clk 0:00:31]} 39. Ne2 {[%clk 0:00:11]}  Nxe2+ {[%clk 0:00:30]} 40. Rxe2 {[%clk 0:00:11]}  Bd3 {[%clk 0:00:30]} 41. Re1 {[%clk 0:00:11]}  e4 {[%clk 0:00:29]} 42. Bc3+ {[%clk 0:00:12]}  Kf5 {[%clk 0:00:29]} 43. Nd4+ {[%clk 0:00:12]}  Rxd4 {[%clk 0:00:29]} 44. Bxd4 {[%clk 0:00:12]}  e3 {[%clk 0:00:29]} 45. g3 {[%clk 0:00:13]}  g5 {[%clk 0:00:29]} 46. gxf4 {[%clk 0:00:12]}  gxf4 {[%clk 0:00:29]} 47. Kg2 {[%clk 0:00:12]}  Rg8+ {[%clk 0:00:28]} 48. Kh3 {[%clk 0:00:12]}  Ke4 {[%clk 0:00:29]} 49. Bc3 {[%clk 0:00:11]}  Kf3 {[%clk 0:00:28]} 50. Kh4 {[%clk 0:00:10]}  Kf2 {[%clk 0:00:23]} 51. Kh5 {[%clk 0:00:09]}  Rg2 {[%clk 0:00:22]} 52. Rh1 {[%clk 0:00:08]}  f3 {[%clk 0:00:22]} 53. Be1+ {[%clk 0:00:08]}  Ke2 {[%clk 0:00:22]} 54. Bh4 {[%clk 0:00:09]}  f2 {[%clk 0:00:23]} 55. Rc1 {[%clk 0:00:08]}  Rg1 {[%clk 0:00:23]} 0-1


[Site "https://www.chess.com"]

[Event "Titled Tuesday Blitz May 2 Early 2023"]
[White "Gutkin, Ilya"]
[Black "Dinu, Dumitru-Daniel"]
[WhiteFideId "16203470"]
[BlackFideId "1208403"]
[WhiteElo "2265"]
[BlackElo "2240"]
[Result "1-0"]
[Round "09"]
[TimeControl "180+2"]
[Date "2023.05.02"]
[WhiteClock "0:00:36"]
[BlackClock "0:00:02"]

1. Nf3 {[%clk 0:03:00]}  Nf6 {[%clk 0:02:59]} 2. g3 {[%clk 0:03:00]}  e6 {[%clk 0:03:00]} 3. Bg2 {[%clk 0:03:00]}  d5 {[%clk 0:03:00]} 4. d4 {[%clk 0:03:00]}  b5 {[%clk 0:02:59]} 5. O-O {[%clk 0:02:59]}  Be7 {[%clk 0:02:59]} 6. a4 {[%clk 0:02:59]}  b4 {[%clk 0:02:59]} 7. c4 {[%clk 0:03:00]}  bxc3 {[%clk 0:02:58]} 8. Nxc3 {[%clk 0:03:00]}  O-O {[%clk 0:02:58]} 9. Bf4 {[%clk 0:03:00]}  a5 {[%clk 0:02:50]} 10. Qd2 {[%clk 0:02:43]}  c6 {[%clk 0:02:48]} 11. Ne5 {[%clk 0:02:38]}  Ba6 {[%clk 0:02:20]} 12. Rfc1 {[%clk 0:02:37]}  Ra7 {[%clk 0:02:19]} 13. Na2 {[%clk 0:02:26]}  Qe8 {[%clk 0:02:03]} 14. b4 {[%clk 0:02:22]}  axb4 {[%clk 0:02:00]} 15. Nxb4 {[%clk 0:02:22]}  Bxb4 {[%clk 0:01:28]} 16. Qxb4 {[%clk 0:02:23]}  Bxe2 {[%clk 0:01:28]} 17. Qb6 {[%clk 0:02:19]}  Ra6 {[%clk 0:01:24]} 18. Qb2 {[%clk 0:02:17]}  Bh5 {[%clk 0:01:20]} 19. Bf1 {[%clk 0:02:17]}  Ra7 {[%clk 0:01:08]} 20. Qb6 {[%clk 0:02:16]}  Qe7 {[%clk 0:00:51]} 21. Nxc6 {[%clk 0:01:53]}  Nxc6 {[%clk 0:00:50]} 22. Rxc6 {[%clk 0:01:54]}  Rfa8 {[%clk 0:00:23]} 23. a5 {[%clk 0:01:49]}  Nd7 {[%clk 0:00:21]} 24. Qb5 {[%clk 0:01:42]}  Qd8 {[%clk 0:00:20]} 25. a6 {[%clk 0:01:39]}  Bg6 {[%clk 0:00:19]} 26. Rac1 {[%clk 0:01:25]}  h5 {[%clk 0:00:17]} 27. Rc7 {[%clk 0:01:18]}  Rxc7 {[%clk 0:00:10]} 28. Rxc7 {[%clk 0:01:17]}  Nf8 {[%clk 0:00:08]} 29. a7 {[%clk 0:01:12]}  f6 {[%clk 0:00:06]} 30. Rb7 {[%clk 0:01:04]}  Be8 {[%clk 0:00:06]} 31. Qb6 {[%clk 0:01:00]}  Qxb6 {[%clk 0:00:05]} 32. Rxb6 {[%clk 0:00:57]}  Rxa7 {[%clk 0:00:05]} 33. Rb8 {[%clk 0:00:55]}  Bg6 {[%clk 0:00:03]} 34. Bd6 {[%clk 0:00:55]}  Rf7 {[%clk 0:00:03]} 35. Bb5 {[%clk 0:00:54]}  Be4 {[%clk 0:00:02]} 36. Be8 {[%clk 0:00:51]}  Ra7 {[%clk 0:00:02]} 37. Kf1 {[%clk 0:00:38]}  Ra1+ {[%clk 0:00:02]} 38. Ke2 {[%clk 0:00:39]}  Ra2+ {[%clk 0:00:02]} 39. Ke3 {[%clk 0:00:39]}  Ra3+ {[%clk 0:00:02]} 40. Bxa3 {[%clk 0:00:36]} 1-0


[Site "https://www.chess.com"]

[Event "Titled Tuesday Blitz May 2 Early 2023"]
[White "Bashkansky, Ethan"]
[Black "Budrewicz, Krzysztof"]
[WhiteFideId "2071533"]
[BlackFideId "1127950"]
[WhiteElo "2101"]
[BlackElo "2230"]
[Result "0-1"]
[Round "09"]
[TimeControl "180+2"]
[Date "2023.05.02"]
[WhiteClock "0:00:01"]
[BlackClock "0:02:08"]

1. d4 {[%clk 0:03:00]}  Nf6 {[%clk 0:02:57]} 2. c4 {[%clk 0:03:01]}  g6 {[%clk 0:02:57]} 3. Nc3 {[%clk 0:03:02]}  Bg7 {[%clk 0:02:58]} 4. e4 {[%clk 0:03:02]}  O-O {[%clk 0:02:58]} 5. f3 {[%clk 0:03:03]}  d6 {[%clk 0:02:59]} 6. Be3 {[%clk 0:03:03]}  Nc6 {[%clk 0:02:58]} 7. Nge2 {[%clk 0:03:02]}  a6 {[%clk 0:02:59]} 8. Nc1 {[%clk 0:03:02]}  e5 {[%clk 0:02:57]} 9. d5 {[%clk 0:03:02]}  Nd4 {[%clk 0:02:57]} 10. Nb3 {[%clk 0:03:03]}  Nxb3 {[%clk 0:02:55]} 11. axb3 {[%clk 0:03:02]}  Nh5 {[%clk 0:02:55]} 12. b4 {[%clk 0:02:56]}  f5 {[%clk 0:02:53]} 13. exf5 {[%clk 0:02:50]}  gxf5 {[%clk 0:02:53]} 14. Bd3 {[%clk 0:02:08]}  Bd7 {[%clk 0:02:51]} 15. Qc2 {[%clk 0:02:00]}  e4 {[%clk 0:02:43]} 16. fxe4 {[%clk 0:01:45]}  f4 {[%clk 0:02:43]} 17. Bf2 {[%clk 0:01:39]}  Be5 {[%clk 0:02:43]} 18. Be2 {[%clk 0:01:27]}  Nf6 {[%clk 0:02:42]} 19. O-O-O {[%clk 0:01:21]}  Kh8 {[%clk 0:02:40]} 20. g3 {[%clk 0:01:14]}  Qe7 {[%clk 0:02:38]} 21. Kb1 {[%clk 0:01:13]}  Ng4 {[%clk 0:02:36]} 22. Bxg4 {[%clk 0:01:10]}  Bxg4 {[%clk 0:02:36]} 23. Rde1 {[%clk 0:00:58]}  f3 {[%clk 0:02:32]} 24. c5 {[%clk 0:00:44]}  Rae8 {[%clk 0:02:29]} 25. Ka2 {[%clk 0:00:34]}  Bh3 {[%clk 0:02:28]} 26. Qd3 {[%clk 0:00:27]}  Qf6 {[%clk 0:02:28]} 27. Rhg1 {[%clk 0:00:25]}  h5 {[%clk 0:02:26]} 28. Qd2 {[%clk 0:00:18]}  Kh7 {[%clk 0:02:24]} 29. Nd1 {[%clk 0:00:17]}  Qh6 {[%clk 0:02:16]} 30. Qxh6+ {[%clk 0:00:16]}  Kxh6 {[%clk 0:02:16]} 31. Ne3 {[%clk 0:00:17]}  Rg8 {[%clk 0:02:10]} 32. Nc4 {[%clk 0:00:16]}  Kg6 {[%clk 0:02:05]} 33. Nxe5+ {[%clk 0:00:16]}  Rxe5 {[%clk 0:02:05]} 34. Bd4 {[%clk 0:00:16]}  Re7 {[%clk 0:02:05]} 35. cxd6 {[%clk 0:00:15]}  cxd6 {[%clk 0:02:05]} 36. e5 {[%clk 0:00:14]}  dxe5 {[%clk 0:02:06]} 37. Rxe5 {[%clk 0:00:14]}  Rxe5 {[%clk 0:02:06]} 38. Bxe5 {[%clk 0:00:15]}  f2 {[%clk 0:02:07]} 39. Rd1 {[%clk 0:00:15]}  f1=Q {[%clk 0:02:07]} 40. Rxf1 {[%clk 0:00:15]}  Bxf1 {[%clk 0:02:07]} 41. Kb3 {[%clk 0:00:15]}  Rd8 {[%clk 0:02:05]} 42. d6 {[%clk 0:00:15]}  Kf5 {[%clk 0:02:06]} 43. Bf4 {[%clk 0:00:14]}  Ke6 {[%clk 0:02:06]} 44. b5 {[%clk 0:00:06]}  Bxb5 {[%clk 0:02:05]} 45. h3 {[%clk 0:00:05]}  Rf8 {[%clk 0:02:04]} 46. Kb4 {[%clk 0:00:04]}  Rxf4+ {[%clk 0:02:05]} 47. gxf4 {[%clk 0:00:04]}  Kxd6 {[%clk 0:02:05]} 48. Ka5 {[%clk 0:00:01]}  Ke6 {[%clk 0:02:06]} 49. Kb6 {[%clk 0:00:01]}  Bc6 {[%clk 0:02:06]} 50. Kc5 {[%clk 0:00:01]}  Kf5 {[%clk 0:02:07]} 51. Kd4 {[%clk 0:00:02]}  Kxf4 {[%clk 0:02:07]} 52. h4 {[%clk 0:00:01]}  Kg4 {[%clk 0:02:08]} 0-1


[Site "https://www.chess.com"]

[Event "Titled Tuesday Blitz May 2 Early 2023"]
[White "Gurevich, Dmitry"]
[Black "Demin, Vladimir"]
[WhiteFideId "2000407"]
[BlackFideId "4167457"]
[WhiteElo "2506"]
[BlackElo "2430"]
[Result "1-0"]
[Round "09"]
[TimeControl "180+2"]
[Date "2023.05.02"]
[WhiteClock "0:00:03"]
[BlackClock "0:00:02"]

1. d4 {[%clk 0:03:00]}  d5 {[%clk 0:02:56]} 2. c4 {[%clk 0:03:00]}  e6 {[%clk 0:02:54]} 3. Nc3 {[%clk 0:02:59]}  Nf6 {[%clk 0:02:55]} 4. Nf3 {[%clk 0:02:59]}  c5 {[%clk 0:02:47]} 5. cxd5 {[%clk 0:02:57]}  cxd4 {[%clk 0:02:45]} 6. Qxd4 {[%clk 0:02:56]}  exd5 {[%clk 0:02:43]} 7. Bg5 {[%clk 0:02:53]}  Be7 {[%clk 0:02:43]} 8. e3 {[%clk 0:02:52]}  O-O {[%clk 0:02:42]} 9. Be2 {[%clk 0:02:52]}  Nc6 {[%clk 0:02:42]} 10. Qa4 {[%clk 0:02:49]}  Be6 {[%clk 0:02:40]} 11. O-O {[%clk 0:02:48]}  Qb6 {[%clk 0:02:41]} 12. Qb5 {[%clk 0:02:47]}  Rfd8 {[%clk 0:02:40]} 13. Qxb6 {[%clk 0:02:44]}  axb6 {[%clk 0:02:41]} 14. Rfd1 {[%clk 0:02:44]}  h6 {[%clk 0:02:41]} 15. Bf4 {[%clk 0:02:37]}  Rac8 {[%clk 0:02:32]} 16. h3 {[%clk 0:02:34]}  Ne4 {[%clk 0:02:31]} 17. Na4 {[%clk 0:02:22]}  Nb4 {[%clk 0:02:15]} 18. a3 {[%clk 0:02:12]}  Na6 {[%clk 0:01:39]} 19. Nd4 {[%clk 0:02:02]}  Bc5 {[%clk 0:01:32]} 20. b4 {[%clk 0:01:54]}  Bxd4 {[%clk 0:01:31]} 21. Rxd4 {[%clk 0:01:54]}  Nc3 {[%clk 0:01:31]} 22. Nxc3 {[%clk 0:01:48]}  Rxc3 {[%clk 0:01:32]} 23. Rd3 {[%clk 0:01:43]}  Rc2 {[%clk 0:01:27]} 24. Bd1 {[%clk 0:01:42]}  Rcc8 {[%clk 0:01:22]} 25. Bf3 {[%clk 0:01:40]}  Nc7 {[%clk 0:01:17]} 26. Rad1 {[%clk 0:01:25]}  Nb5 {[%clk 0:01:16]} 27. a4 {[%clk 0:01:24]}  Nc3 {[%clk 0:01:15]} 28. Ra1 {[%clk 0:01:18]}  Bf5 {[%clk 0:01:15]} 29. Rd4 {[%clk 0:01:15]}  Be4 {[%clk 0:01:14]} 30. Kf1 {[%clk 0:01:01]}  Ra8 {[%clk 0:01:08]} 31. Bxe4 {[%clk 0:00:40]}  dxe4 {[%clk 0:01:08]} 32. Rxd8+ {[%clk 0:00:37]}  Rxd8 {[%clk 0:01:08]} 33. Bc7 {[%clk 0:00:37]}  Rd2 {[%clk 0:00:40]} 34. Bxb6 {[%clk 0:00:36]}  Nd5 {[%clk 0:00:40]} 35. Bc5 {[%clk 0:00:34]}  b6 {[%clk 0:00:40]} 36. Bd4 {[%clk 0:00:34]}  Nxb4 {[%clk 0:00:35]} 37. Bxb6 {[%clk 0:00:34]}  f5 {[%clk 0:00:26]} 38. a5 {[%clk 0:00:33]}  Na6 {[%clk 0:00:26]} 39. Rc1 {[%clk 0:00:32]}  Ra2 {[%clk 0:00:23]} 40. h4 {[%clk 0:00:30]}  Nb4 {[%clk 0:00:23]} 41. h5 {[%clk 0:00:27]}  Kf7 {[%clk 0:00:21]} 42. Rc4 {[%clk 0:00:23]}  Nd3 {[%clk 0:00:20]} 43. Rc7+ {[%clk 0:00:22]}  Ke6 {[%clk 0:00:17]} 44. Rxg7 {[%clk 0:00:20]}  Rxf2+ {[%clk 0:00:11]} 45. Kg1 {[%clk 0:00:20]}  Ra2 {[%clk 0:00:12]} 46. Rg6+ {[%clk 0:00:17]}  Kf7 {[%clk 0:00:11]} 47. Rxh6 {[%clk 0:00:14]}  Nf2 {[%clk 0:00:11]} 48. Rg6 {[%clk 0:00:12]}  Ng4 {[%clk 0:00:11]} 49. Rxg4 {[%clk 0:00:11]}  fxg4 {[%clk 0:00:11]} 50. Kh2 {[%clk 0:00:05]}  Kf6 {[%clk 0:00:10]} 51. Bd8+ {[%clk 0:00:04]}  Kg7 {[%clk 0:00:09]} 52. Kg3 {[%clk 0:00:03]}  Kh6 {[%clk 0:00:09]} 53. Kxg4 {[%clk 0:00:01]}  Rxg2+ {[%clk 0:00:10]} 54. Kf4 {[%clk 0:00:01]}  Kxh5 {[%clk 0:00:09]} 55. Kxe4 {[%clk 0:00:01]}  Kg6 {[%clk 0:00:07]} 56. Bb6 {[%clk 0:00:02]}  Ra2 {[%clk 0:00:08]} 57. Kd5 {[%clk 0:00:02]}  Kf5 {[%clk 0:00:08]} 58. Kc6 {[%clk 0:00:02]}  Ke4 {[%clk 0:00:08]} 59. Kb7 {[%clk 0:00:03]}  Kd5 {[%clk 0:00:07]} 60. a6 {[%clk 0:00:03]}  Rg2 {[%clk 0:00:03]} 61. a7 {[%clk 0:00:03]}  Rg7+ {[%clk 0:00:04]} 62. Ka6 {[%clk 0:00:03]}  Rg8 {[%clk 0:00:03]} 63. Bc7 {[%clk 0:00:04]}  Kc6 {[%clk 0:00:02]} 64. Bb8 {[%clk 0:00:03]} 1-0


[Site "https://www.chess.com"]

[Event "Titled Tuesday Blitz May 2 Early 2023"]
[White "Pandey Srishti"]
[Black "Ronka, Erik"]
[WhiteFideId "35093290"]
[BlackFideId "505080"]
[WhiteElo "2083"]
[BlackElo "2264"]
[Result "1-0"]
[Round "09"]
[TimeControl "180+2"]
[Date "2023.05.02"]
[WhiteClock "0:01:14"]
[BlackClock "0:00:01"]

1. e4 {[%clk 0:03:00]}  a6 {[%clk 0:03:00]} 2. d4 {[%clk 0:02:50]}  c5 {[%clk 0:03:00]} 3. d5 {[%clk 0:02:47]}  e5 {[%clk 0:02:59]} 4. a4 {[%clk 0:02:46]}  d6 {[%clk 0:02:58]} 5. Nc3 {[%clk 0:02:46]}  Be7 {[%clk 0:02:57]} 6. Nf3 {[%clk 0:02:46]}  Bg4 {[%clk 0:02:55]} 7. Be2 {[%clk 0:02:44]}  Bxf3 {[%clk 0:02:54]} 8. Bxf3 {[%clk 0:02:45]}  Bg5 {[%clk 0:02:53]} 9. O-O {[%clk 0:02:44]}  Bxc1 {[%clk 0:02:52]} 10. Qxc1 {[%clk 0:02:44]}  Ne7 {[%clk 0:02:52]} 11. g3 {[%clk 0:02:44]}  O-O {[%clk 0:02:51]} 12. Bg2 {[%clk 0:02:44]}  Nd7 {[%clk 0:02:35]} 13. f4 {[%clk 0:02:37]}  f5 {[%clk 0:02:28]} 14. Qd2 {[%clk 0:02:25]}  exf4 {[%clk 0:02:20]} 15. Rxf4 {[%clk 0:02:23]}  Ne5 {[%clk 0:02:17]} 16. Raf1 {[%clk 0:02:19]}  N5g6 {[%clk 0:02:11]} 17. R4f2 {[%clk 0:02:16]}  fxe4 {[%clk 0:01:56]} 18. Rxf8+ {[%clk 0:02:13]}  Nxf8 {[%clk 0:01:57]} 19. Nxe4 {[%clk 0:02:12]}  Neg6 {[%clk 0:01:19]} 20. Ng5 {[%clk 0:02:11]}  Qb6 {[%clk 0:01:15]} 21. Qf2 {[%clk 0:02:06]}  Qc7 {[%clk 0:00:58]} 22. Bh3 {[%clk 0:02:02]}  h6 {[%clk 0:00:45]} 23. Ne6 {[%clk 0:02:00]}  Qe7 {[%clk 0:00:42]} 24. Bf5 {[%clk 0:01:53]}  Ne5 {[%clk 0:00:42]} 25. Nxf8 {[%clk 0:01:39]}  Rxf8 {[%clk 0:00:29]} 26. Be6+ {[%clk 0:01:30]}  Nf7 {[%clk 0:00:27]} 27. Qf5 {[%clk 0:01:30]}  Qf6 {[%clk 0:00:17]} 28. Qh5 {[%clk 0:01:17]}  Qd4+ {[%clk 0:00:13]} 29. Rf2 {[%clk 0:01:16]}  Kh7 {[%clk 0:00:02]} 30. Bxf7 {[%clk 0:01:15]}  Qd1+ {[%clk 0:00:01]} 31. Qxd1 {[%clk 0:01:14]} 1-0


[Site "https://www.chess.com"]